Cogmind - Beta 14 @@@ ROGUE MODE // 2024.10.23 @ 19:43:50 Player: Kate+Gabe4evr Result: Self-destructed Performance ------------- Evolutions (3) 1500 Regions Visited (7) 1400 Robots Destroyed (77) 385 Value Destroyed (2345) 2345 Prototype IDs (14) 280 Alien Tech Used (0) 0 Bonus (551) 551 TOTAL SCORE: 6461 Bonus ------- High Alert Combat Kills 113 Follower Combat Kills 150 Registered with UFD 300 Friendly Fire -12 Cogmind --------- Core Integrity 198/700 Matter 0/300 Energy 350/350 System Corruption 17% Temperature Cool (0) Movement Treading (240) Ox1 Location -7/Scraptown Parts ------- > --- POWER (2) -------- Cooled Ion Engine Makeshift Power Source > --- PROPULSION (5) --- Improved Medium Treads Aluminum Leg (fused) > --- UTILITY (4) ------ High-capacity Storage Unit Improved Signal Interpreter Improved Terrain Scan Processor > --- WEAPON (2) ------- Gauss Cannon > --- INVENTORY (20) --- Deuterium Engine Light Nuclear Core Light Nuclear Core Compact Wheel Improved Heat Sink Advanced Targeting Computer Kinecellerator Microactuators Transmission Jammer Hardened Medium Armor Plating A0-MCA's Component Scanner Improved EM Pulse Cannon Compact Ion Cannon Ion Burst Cannon Gauss Rifle Flak Gun Advanced EMP Blaster Plasma Cutter Peak State ------------ > --- POWER ------------ Deuterium Engine Improved Deuterium Engine > --- PROPULSION ------- Carbon-fiber Leg Carbon-fiber Leg Carbon-fiber Leg Titanium Leg Improved Titanium Leg > --- UTILITY ---------- Improved Heat Sink High-capacity Storage Unit Improved Signal Interpreter Improved Terrain Scan Processor > --- WEAPON ----------- Gatling Laser Flak Gun > --- INVENTORY -------- Subdweller Power Source Light Nuclear Core Light Nuclear Core Advanced Treads Carbon-fiber Leg Carbon-fiber Leg Titanium Leg Subdweller Monowheel Improved Heat Sink Improved Heat Sink Advanced Targeting Computer Kinecellerator Microactuators Transmission Jammer Hardened Medium Armor Plating Improved Medium Laser Subdweller Machine Gun Gauss Rifle Plasma Cutter Scythe [Rating: 47] Favorites ----------- Power Cooled Ion Engine Engine Cooled Ion Engine Power Core Light Nuclear Core Propulsion Aluminum Leg Treads Improved Medium Treads Leg Aluminum Leg Wheel Compact Wheel Utility Improved Signal Interpreter Device Improved Heat Sink Storage High-capacity Storage Unit Processor Improved Signal Interpreter Protection Hardened Medium Armor Plating Weapon High-powered Shotgun Energy Gun Improved Spread Laser Energy Cannon Ion Burst Cannon Ballistic Gun High-powered Shotgun Ballistic Cannon Gauss Cannon Launcher Advanced EMP Blaster Special Weapon Plasma Cutter Slashing Weapon Power Sword Build | -11 -10 -10 -8 -7 -7 -7 -7 ------- Run | Yrd Mat Sub Mat Fac Sto Rec Scr Slots Evolved 6 | . . . 4 2 . . . Power 1 | . . . . 1 . . . Propulsion 3 | . . . 2 1 . . . Utility 2 | . . . 2 . . . . Weapon . | . . . . . . . . Parts Attached 80 | 6 3 1 25 7 24 7 7 Power 14 | 1 . . 6 1 3 2 1 Engine 8 | 1 . . 2 . 3 1 1 Core 6 | . . . 4 1 . 1 . Reactor . | . . . . . . . . Propulsion 27 | 2 . . 8 4 7 4 2 Treads 2 | . . . . . . 1 1 Leg 22 | 2 . . 8 4 7 . 1 Wheel 3 | . . . . . . 3 . Hover . | . . . . . . . . Flight . | . . . . . . . . Utility 14 | 1 2 . 7 1 2 1 . Device 6 | . 1 . 2 . 2 1 . Storage 3 | 1 1 . . 1 . . . Processor 2 | . . . 2 . . . . Hackware . | . . . . . . . . Protection 3 | . . . 3 . . . . Artifact . | . . . . . . . . Weapon 25 | 2 1 1 4 1 12 . 4 Energy Gun 11 | 2 1 . 3 . 5 . . Energy Cannon 2 | . . . . . 2 . . Ballistic Gun 4 | . . 1 1 1 1 . . Ballistic Cannon 1 | . . . . . . . 1 Launcher 1 | . . . . . 1 . . Special Weapon 1 | . . . . . . . 1 Impact Weapon . | . . . . . . . . Slashing Weapon 5 | . . . . . 3 . 2 Piercing Weapon . | . . . . . . . . Special Melee Weapon . | . . . . . . . . Unidentified Prototypes 8 | . . . 2 . 6 . . Parts Lost 21 | . . . 3 . 8 5 5 Power 3 | . . . 1 . . 2 . Propulsion 12 | . . . . . 7 2 3 Utility 4 | . . . 1 . 1 1 1 Weapon 2 | . . . 1 . . . 1 Highest Loss Streak 5 | . . . 1 . 2 5 3 To Critical Strikes . | . . . . . . . . Average Slot Usage (%) 87 | . 94 100 98 99 98 85 79 Engine 10 | . 14 14 1 7 13 9 12 Core 3 | . . . 7 6 1 4 1 Treads 7 | . . . . . . 7 12 Leg 21 | . 28 28 35 37 36 13 12 Wheel 3 | . . . . . . 3 5 Device 5 | . 9 14 2 . 5 7 5 Storage 7 | . 14 14 9 7 7 7 7 Processor 14 | . . . 17 15 15 15 15 Protection 1 | . . . 6 7 1 . . Energy Gun 4 | . 27 19 8 7 8 7 . Ballistic Gun 2 | . . 8 9 7 2 . . Ballistic Cannon 1 | . . . . . . . 2 Peak Build Rating 47 | 6 9 11 34 44 47 41 45 Average Rating 34 | 4 7 10 31 40 44 38 34 On Entrance 22 | . 6 9 11 33 44 38 39 Naked Turns . | . . . . . . . . Heaviest Build 73 | 12 22 18 33 69 73 73 66 Greatest Support 82 | 20 20 20 64 82 82 48 52 Greatest Overweight (x) 6 | . 1 . . . 2 6 1 Average Overweight (x) . | . . . . . . 2 1 Largest Inventory Capacity 20 | 8 10 10 10 20 20 20 20 Average Capacity 17 | 6 9 10 10 19 20 20 20 Most Carried 20 | 1 4 8 10 17 20 19 20 Average Carried 16 | . 3 7 9 12 19 17 19 Final Capacity 20 | 8 10 10 10 20 20 20 20 Final Carried 20 | 1 4 8 10 17 20 16 18 Class Distribution -------------------- 69% | Mutant 27% | Scavenger-Mutant 3% | Commander-Mutant Dominant Class ---------------- Mutant | -10/Materials Mutant | -10/Subcaves Mutant | -8/Materials Mutant | -7/Factory Scavenger-Mutant | -7/Storage Scavenger-Mutant | -7/Recycling Mutant | -7/Scraptown Resources | -11 -10 -10 -8 -7 -7 -7 -7 ----------- Run | Yrd Mat Sub Mat Fac Sto Rec Scr Matter Collected 1691 | 244 42 . 607 118 401 78 201 Remotely . | . . . . . . . . Salvage Created 3155 | . 106 44 1309 124 923 534 115 Parts 147 | . 5 7 78 5 31 18 3 Haulers Intercepted 1 | . . . 1 . . . . Recyclers Shooed 2 | . . . . . 1 1 . Parts Field Recycled . | . . . . . . . . Retrieved Matter . | . . . . . . . . Parts Self-Destructed 3 | . . . . . . . 3 Prevented . | . . . . . . . . Kills | -11 -10 -10 -8 -7 -7 -7 -7 ------- Run | Yrd Mat Sub Mat Fac Sto Rec Scr Combat Hostiles Destroyed 59 | . 2 1 35 1 14 6 . Guns 52 | . 2 1 35 1 11 2 . Cannons 6 | . . . . . 2 4 . Classes Destroyed 10 | . 2 1 5 . 1 1 . Worker 5 | . . . 3 1 1 . . Hauler 1 | . . . 1 . . . . Recycler 11 | . . . 1 1 5 4 . Watcher 1 | . 1 . . . . . . Swarmer 17 | . . . 16 . . 1 . Grunt 21 | . 2 . 11 . 8 . . Protector 1 | . . . . . . 1 . Sentry 17 | . . . 8 1 5 3 . Programmer 2 | . . . . . 1 1 . Subdweller 1 | . . 1 . . . . . Best Kill Streak 5 | . 2 1 4 1 5 5 . Combat Bots Only 4 | . 2 1 4 1 4 4 . Max Kills in Single Turn 2 | . 1 1 2 1 1 1 . Gunslinging . | . . . . . . . . Exploded . | . . . . . . . . Melee . | . . . . . . . . Uniques/NPCs Destroyed . | . . . . . . . . Combat | -11 -10 -10 -8 -7 -7 -7 -7 -------- Run | Yrd Mat Sub Mat Fac Sto Rec Scr Hostile Shots Fired 543 | . 6 4 157 33 230 113 . Missed 193 | . 2 1 53 13 84 40 . Damage Taken 4303 | . 52 49 1296 208 1455 632 611 Core 609 | . 14 . 93 10 239 135 118 Absorbed by Shields . | . . . . . . . . Redirected to Shielding 34 | . . . 34 . . . . Core Remaining (%) 92 | 100 . 94 83 . . . . Volleys Fired 276 | . 6 10 93 14 64 20 69 Largest 2 | . 2 2 2 2 2 2 1 Hottest 175 | . 100 100 94 81 175 175 48 Shots Fired 471 | . 12 16 186 26 123 39 69 Gun 369 | . 12 16 186 26 110 19 . Cannon 89 | . . . . . 13 20 56 Launcher . | . . . . . . . . Special 13 | . . . . . . . 13 Kinetic 197 | . . 5 93 12 31 . 56 Thermal 272 | . 10 11 93 14 92 39 13 Explosive . | . . . . . . . . Electromagnetic 2 | . 2 . . . . . . Robot Hit Streak 20 | . 10 5 16 4 20 5 4 Robot Miss Streak 9 | . 1 1 5 3 9 7 . Penetration Max . | . . . . . . . . Secondary Targets 3 | . 1 . 2 . . . . Max Gunslinging Chain 1 | . 1 . 1 . . . . Shots Hit Robots 294 | . 10 5 129 17 92 34 7 Core Hits 183 | . 6 2 63 7 77 26 2 Critical Kills 2 | . . . 1 . 1 . . Critical Parts Destroyed 2 | . . . 2 . . . . Critical Strikes 14 | . 1 . 8 1 4 . . Burn 9 | . 1 . 5 1 2 . . Destroy 5 | . . . 3 . 2 . . Melee Attacks 66 | . . . . . 3 . 63 Impact . | . . . . . . . . Slashing 66 | . . . . . 3 . 63 Piercing . | . . . . . . . . Sneak Attacks . | . . . . . . . . Combat Hostiles . | . . . . . . . . Follow-up Attacks . | . . . . . . . . Damage Inflicted 6122 | 1 136 64 2429 317 1985 846 344 Guns 4948 | . 136 64 2423 317 1747 261 . Cannons 868 | . . . . . 177 585 106 Explosions 57 | . . . . . 57 . . Melee 238 | . . . . . . . 238 Ramming 11 | 1 . . 6 . 4 . . Kinetic 2091 | . . . 1294 196 495 . 106 Thermal 3701 | . 112 64 1129 121 1429 846 . Explosive 57 | . . . . . 57 . . Electromagnetic 24 | . 24 . . . . . . Impact . | . . . . . . . . Slashing 238 | . . . . . . . 238 Piercing . | . . . . . . . . Highest Corruption 17 | . . . . . . 2 17 Average Corruption 5 | . . . . . . 1 5 Corruption Purged . | . . . . . . . . Corruption Blocked . | . . . . . . . . Effects 104 | . . . . . . 12 92 Message Errors 26 | . . . . . . 3 23 Matter Fused 20 | . . . . . . 4 16 Heat Flow Errors 15 | . . . . . . 2 13 Energy Discharges 8 | . . . . . . . 8 Parts Fused 1 | . . . . . . . 1 Data Loss (minor) 25 | . . . . . . 2 23 Data Loss (major) 9 | . . . . . . 1 8 Overload Shots . | . . . . . . . . Overflow Damage 21 | . . . . . . 1 20 Projectiles 1 | . . . . . . 1 . Explosions . | . . . . . . . . Melee 20 | . . . . . . . 20 Knockbacks 1 | . . . . . . . 1 Impact . | . . . . . . . . Kinetic 1 | . . . . . . . 1 Secondary . | . . . . . . . . Self-Inflicted Damage 70 | . . . . . 70 . . Shots 1 | . . . . . 1 . . Rammed . | . . . . . . . . Targets Rammed 5 | 1 . . 3 . 1 . . Kicked 5 | 1 . . 3 . 1 . . Crushed . | . . . . . . . . Highest Temperature 471 | . 189 . 337 292 471 366 249 Average Temperature 102 | . 81 . 86 100 111 147 99 Received Heat Transfer 1275 | . 33 . 540 108 456 138 . Effects 7 | . . . 2 . 5 . . Shutdowns 3 | . . . 1 . 2 . . Energy Bleed 3 | . . . 1 . 2 . . Matter Decay 1 | . . . . . 1 . . Siege Activations . | . . . . . . . . Robots Corrupted . | . . . . . . . . Combat Hostiles . | . . . . . . . . Parts Fried . | . . . . . . . . Impact Corruptions . | . . . . . . . . Robots Melted 1 | . . . . . 1 . . Combat Hostiles 1 | . . . . . 1 . . Parts Melted 8 | . 2 . 2 . 4 . . Heat Transferred 6860 | . 407 185 2738 333 2467 730 . Parts Sabotaged . | . . . . . . . . Parts Stolen . | . . . . . . . . Parts Stripped . | . . . . . . . . Power Chain Reactions . | . . . . . . . . Alert | -11 -10 -10 -8 -7 -7 -7 -7 ------- Run | Yrd Mat Sub Mat Fac Sto Rec Scr Peak Influence 600 | . 72 . 600 286 346 155 . Initial 235 | . . . 18 235 39 114 . Average 239 | . 51 . 408 221 197 50 . Maximum Alert Level 2 | . . . 2 1 1 . . Low Security (%) 43 | 100 100 . 10 14 43 100 . Level 1 32 | . . . 29 85 56 . . Level 2 23 | . . . 60 . . . . Level 3 . | . . . . . . . . Level 4 . | . . . . . . . . Level 5 . | . . . . . . . . High Security . | . . . . . . . . Max Security . | . . . . . . . . Squads Dispatched 12 | . . . 4 . 8 . . Investigation 3 | . . . 1 . 2 . . Extermination 2 | . . . . . 2 . . Reinforcement 5 | . . . 3 . 2 . . Assault . | . . . . . . . . Garrison 2 | . . . . . 2 . . Intercept . | . . . . . . . . Searches Triggered . | . . . . . . . . Construction Impeded . | . . . . . . . . Haulers Reinforced . | . . . . . . . . Active Scanning Responses . | . . . . . . . . Cargo Convoy Interrupts . | . . . . . . . . Stealth | -11 -10 -10 -8 -7 -7 -7 -7 --------- Run | Yrd Mat Sub Mat Fac Sto Rec Scr Distress Signals 7 | . . . 4 . 3 . . Communications Jammed . | . . . . . . . . Distress Signals . | . . . . . . . . Times Spotted 110 | . 5 1 62 3 33 6 . Peak Tracking Total 10 | . 4 1 5 1 10 4 5 Tactical Retreats 6 | . . . 4 . 2 . . Traps | -11 -10 -10 -8 -7 -7 -7 -7 ------- Run | Yrd Mat Sub Mat Fac Sto Rec Scr Traps Triggered 2 | . . . 1 . 1 . . Indirectly . | . . . . . . . . Trap Hack Attempts . | . . . . . . . . Triggered . | . . . . . . . . Disarmed . | . . . . . . . . Reprogrammed . | . . . . . . . . Reused . | . . . . . . . . Traps Extracted . | . . . . . . . . Installed . | . . . . . . . . Triggered . | . . . . . . . . Machines | -11 -10 -10 -8 -7 -7 -7 -7 ---------- Run | Yrd Mat Sub Mat Fac Sto Rec Scr Machines Disabled 5 | . . . . . 5 . . Max in Single Turn 1 | . . . . . 1 . . Machines Repaired . | . . . . . . . . Machines Dismantled . | . . . . . . . . Machines Sabotaged . | . . . . . . . . Overloaded Fab Kills . | . . . . . . . . Hacking | -11 -10 -10 -8 -7 -7 -7 -7 --------- Run | Yrd Mat Sub Mat Fac Sto Rec Scr Machines Accessed 25 | . 2 . 9 1 8 . 5 Terminals 20 | . 2 . 9 1 8 . . Fabricators . | . . . . . . . . Repair Stations . | . . . . . . . . Recycling Units . | . . . . . . . . Scanalyzers . | . . . . . . . . Garrison Access . | . . . . . . . . Total Hacks 66 | . 4 . 20 2 20 . 20 Successful 35 | . . . 6 1 8 . 20 Failed 31 | . 4 . 14 1 12 . . Catastrophic 3 | . . . 3 . . . . Database Lockouts . | . . . . . . . . Manual 40 | . 4 . 20 1 15 . . Terminals 46 | . 4 . 20 2 20 . . Fabricators . | . . . . . . . . Repair Stations . | . . . . . . . . Recycling Units . | . . . . . . . . Scanalyzers . | . . . . . . . . Garrison Access . | . . . . . . . . Terminal Hacks 28 | . . . 1 1 6 . 20 Record 14 | . . . . 1 . . 13 Robot Analysis 6 | . . . . . . . 6 Open Door 4 | . . . . . 4 . . Terminal Index 1 | . . . . . 1 . . Unreport Threat 2 | . . . 1 . 1 . . Derelict Proto ID Bank 1 | . . . . . . . 1 Fabricator Hacks . | . . . . . . . . Repair Station Hacks . | . . . . . . . . Recycling Unit Hacks . | . . . . . . . . Scanalyzer . | . . . . . . . . Garrison Access Hacks . | . . . . . . . . Unauthorized Hacks 7 | . . . 5 . 2 . . Terminals 7 | . . . 5 . 2 . . Botnet 7 | . . . 5 . 2 . . Fabricators . | . . . . . . . . Repair Stations . | . . . . . . . . Recycling Units . | . . . . . . . . Scanalyzers . | . . . . . . . . Garrison Access . | . . . . . . . . Data Cores Recovered . | . . . . . . . . Used . | . . . . . . . . Hacking Detections 18 | . 2 . 9 1 6 . . Full Trace Events 1 | . . . . . 1 . . Feedback Events . | . . . . . . . . Feedback Blocked . | . . . . . . . . Robot Schematics Acquired . | . . . . . . . . Robots Built . | . . . . . . . . Authchips . | . . . . . . . . Time . | . . . . . . . . Total Robot Build Rating . | . . . . . . . . Part Schematics Acquired . | . . . . . . . . Parts Built . | . . . . . . . . Authchips . | . . . . . . . . Time . | . . . . . . . . Total Part Build Rating . | . . . . . . . . Parts Repaired . | . . . . . . . . Time . | . . . . . . . . Parts Recycled . | . . . . . . . . Recycled Matter . | . . . . . . . . Retrieved Matter . | . . . . . . . . Retrieved Components . | . . . . . . . . Parts Scanalyzed . | . . . . . . . . Part Schematics Acquired . | . . . . . . . . Parts Damaged . | . . . . . . . . Bothacking | -11 -10 -10 -8 -7 -7 -7 -7 ------------ Run | Yrd Mat Sub Mat Fac Sto Rec Scr Used RIF Installer . | . . . . . . . . Robots Hacked . | . . . . . . . . Non-combat . | . . . . . . . . Combat . | . . . . . . . . Robot Hacks Applied . | . . . . . . . . Relay Couplers Released . | . . . . . . . . Fabnet Peak Effective % . | . . . . . . . . Robots Rewired 1 | . . . . 1 . . . Allies Hacked . | . . . . . . . . Hacks Repelled . | . . . . . . . . Allies | -11 -10 -10 -8 -7 -7 -7 -7 -------- Run | Yrd Mat Sub Mat Fac Sto Rec Scr Total Allies 11 | . . . . 1 10 . . Largest Group 10 | . . . . 1 10 . . Highest-Rated Group 173 | . . . . 21 173 . . Highest-Rated Ally 29 | . . . . 21 29 . . Total Orders . | . . . . . . . . Ally Attacks 74 | . . . . 2 72 . . Total Damage 780 | . . . . 68 712 . . Kills 9 | . . . . . 9 . . Allies Corrupted . | . . . . . . . . Allies Melted . | . . . . . . . . Intel | -11 -10 -10 -8 -7 -7 -7 -7 ------- Run | Yrd Mat Sub Mat Fac Sto Rec Scr Robot Analysis Total 6 | . . . . . . . 6 Derelict Logs Recovered 2 | . . . . . . . 2 Drone Launches . | . . . . . . . . Drone Recoveries . | . . . . . . . . Exploration | -11 -10 -10 -8 -7 -7 -7 -7 ------------- Run | Yrd Mat Sub Mat Fac Sto Rec Scr Turns Passed 10844 | 61 384 189 1921 470 1170 956 5693 Spaces Moved 4301 | 46 115 132 1158 327 589 321 1613 Core 7 | 7 . . . . . . . Treads 1454 | . . . . . . . 1454 Legs 2562 | 39 115 132 1158 327 589 202 . Wheels 278 | . . . . . . 119 159 Hover . | . . . . . . . . Flight . | . . . . . . . . Fastest Speed 50 | 50 120 120 120 124 122 115 115 Average Speed 172 | 109 121 120 123 124 136 270 220 Slowest Speed 540 | 120 190 120 125 125 260 540 232 Overloaded Moves . | . . . . . . . . Propulsion Burnouts . | . . . . . . . . Robots Hopped . | . . . . . . . . Cave-ins Triggered 2 | . . . . . . . 2 Exploration Rate (%) 46 | 5 28 12 87 9 78 65 91 Regions Visited 7 Branch Regions 4 Pre-discovered Areas . | . . . . . . . . Known Exits Taken 4 | . . . 1 1 1 1 . Unknown Exits Taken 3 | 1 1 1 . . . . . Scrap Searched 4 | . . . . . . . 4 Spaces Dug 69 | . . . . . 1 . 68 Terrain Destroyed 99 | . . . . . 14 . 85 Melee 29 | . . . . . . . 29 Projectile 59 | . . . . . 3 . 56 AOE 11 | . . . . . 11 . . Terrain Rammed . | . . . . . . . . Walls Destroyed . | . . . . . . . . Machines Disabled . | . . . . . . . . Actions | -11 -10 -10 -8 -7 -7 -7 -7 --------- Run | Yrd Mat Sub Mat Fac Sto Rec Scr Total 7135 | 53 347 146 1471 364 820 359 3575 Wait 2326 | . 221 . 161 6 118 12 1808 Move 4295 | 46 114 131 1157 326 588 320 1613 Hop . | . . . . . . . . Pick Up 34 | 1 1 4 10 6 7 . 5 Fast Attach 27 | 6 3 . 7 . 6 3 2 Attach 17 | . . . 3 2 6 4 2 Detach 9 | . 2 . . . 3 . 4 Swap 36 | . . 1 15 5 12 . 3 Drop 39 | . . . 22 2 9 . 6 Fire 276 | . 6 10 93 14 64 20 69 Melee 66 | . . . . . 3 . 63 Ram . | . . . . . . . . Kick 4 | . . . 3 . 1 . . Crush . | . . . . . . . . Escape Stasis . | . . . . . . . . Rewire 6 | . . . . 3 3 . . Trap . | . . . . . . . . Miscellaneous . | . . . . . . . . Route ------- -11/Scrapyard -10/Materials -10/Subcaves -8/Materials (discovered 3 exits: *Fac x3) -7/Factory -7/Storage (discovered 2 exits: [*Fac] / *Rec) -7/Recycling (discovered 2 exits: *Fac / *Scr) -7/Scraptown (discovered 2 exits: *Fac x2) History --------- Turn | Location | Event 19 | -11/Scrapyard | Discovered new exit (range 15) 62 | -11/Scrapyard | Entered Materials 309 | -10/Materials | Build established: Mutant 420 | -10/Materials | Discovered new exit (range 6) 446 | -10/Materials | Entered Subcaves 603 | -10/Subcaves | Discovered new exit (range 14) 635 | -10/Subcaves | Entered Materials 635 | -8/Materials | Evolved 4 slots: Propulsion x2, Utility x2 1190 | -8/Materials | Discovered new exit (range 16) 1207 | -8/Materials | Identified exit to Factory 1548 | -8/Materials | Discovered exit to Factory (range 10) 2127 | -8/Materials | Discovered exit to Factory (range 15) 2556 | -8/Materials | Entered Factory 2556 | -7/Factory | Evolved 2 slots: Power x1, Propulsion x1 3019 | -7/Factory | Discovered new exit (range 6) 3025 | -7/Factory | Identified exit to Storage 3026 | -7/Factory | Entered Storage 3258 | -7/Storage | Build established: Scavenger-Mutant 3785 | -7/Storage | Assisted by bots powering up and referring to "LRC-V3" 4012 | -7/Storage | Garrison activated, responded to threat 4065 | -7/Storage | Discovered new exit (range 15) 4074 | -7/Storage | Build established: Commander-Mutant 4192 | -7/Storage | Used back door to open Recycling access 4192 | -7/Storage | Discovered new exit (range 3) 4194 | -7/Storage | Identified exit to Recycling 4196 | -7/Storage | Entered Recycling 4483 | -7/Recycling | Build established: Scavenger-Mutant 4561 | -7/Recycling | Core integrity fell below 50% 4591 | -7/Recycling | Lost 5 parts (2p2n1u) 4844 | -7/Recycling | Build established: Mutant 5092 | -7/Recycling | Discovered new exit (range 15) 5122 | -7/Recycling | Scanned before Scraplab entrance 5139 | -7/Recycling | Entered Scraplab 5149 | -7/Recycling | Discovered new exit (range 3) 5150 | -7/Recycling | Identified exit to Scraptown 5152 | -7/Recycling | Entered Scraptown 5308 | -7/Scraptown | Build established: Scavenger-Mutant 5545 | -7/Scraptown | Visited Assassins FH 5582 | -7/Scraptown | Heard Great Nut preacher, LISTEN AND RECITE! 5633 | -7/Scraptown | Visited TADAMA 5684 | -7/Scraptown | Visited Cyclists 5725 | -7/Scraptown | Visited CR-KLE's Repair Center 6087 | -7/Scraptown | Discovered new exit (range 5) 6096 | -7/Scraptown | Identified exit to Factory 6149 | -7/Scraptown | Scanned Subdweller tech in exchange for log data 6156 | -7/Scraptown | Learned Research stockpile data 6158 | -7/Scraptown | Learned Factory terminal intel 6217 | -7/Scraptown | Visited Red Mages 6327 | -7/Scraptown | Visited Shadow of the Wyrm 6347 | -7/Scraptown | Visited SPCMW 6447 | -7/Scraptown | Visited UFD Registry 6447 | -7/Scraptown | Registered with UFD as "Deathdriver" 6545 | -7/Scraptown | Visited Science Guys 6668 | -7/Scraptown | Visited DA-N13 Charitable Foundation 6691 | -7/Scraptown | Found DCF Scrap (32 items) 6817 | -7/Scraptown | Visited Junk Repository 6917 | -7/Scraptown | Visited Curators Association 6963 | -7/Scraptown | Visited Analyses Database 7016 | -7/Scraptown | Visited Scrap Suit Storage 7018 | -7/Scraptown | Build established: Mutant 7933 | -7/Scraptown | Visited Abandonware Association 7954 | -7/Scraptown | Learned abandonware demo "OVRCLOCK.EXE" 8063 | -7/Scraptown | Visited A0-MCA Data Center 8077 | -7/Scraptown | Given a C rating by A0-MCA 8084 | -7/Scraptown | Found A0-MCA's Component Scanner 8359 | -7/Scraptown | Discovered exit to Factory (range 5) 9002 | -7/Scraptown | Attacked by Scraptown defenders 9251 | -7/Scraptown | Crushed by falling debris 9389 | -7/Scraptown | Crushed by falling debris 9389 | -7/Scraptown | System corruption reached 10% 9420 | -7/Scraptown | Lost 3 parts (1n1u1w) 10845 | -7/Scraptown | Self-destructed Last Messages --------------- 10002_ V5ZTAUB/A#ZMG XGFWAUT2XZ/Z1W0Y0T&CR6ZJ# 10033_ System corrupted: Component data lost. 10135_ System corrupted: Heat flow error (+196). 10160_ System corrupted: FCS attempts to trigger Gauss Cannon. 10227_ RFUB0D=PKX:FG7GMPI EHS3W%S=BYH 10250_ System corrupted: Heat flow error (+247). 10287_ 5XN6O1 10661_ 92=9S7&O8DNF1AYRNM&&DLBM:&41RS2| BWRS 10677_ System corrupted: Substantial component data lost. 10693_ System corrupted: FCS attempts to trigger Gauss Cannon. 10722_ >#DINSGQ5IVG LOR LH3CC,IP3C 10737_ CFJKMQ8BYUN#>GTGF WCIYJ2Z#HYCARU7PTC 10756_ System corrupted: FCS attempts to trigger Gauss Cannon. 10777_ System corrupted: Substantial component data lost. 10793_ System corrupted: Heat flow error (+117). 10810_ System corrupted: Component data lost. 10831_ System corrupted: Substantial component data lost. Map ----- +----------------------------------------------------+ | # #"""""#?????????????????????? | | #########?????????????????????? | | ??????????????????????????????? | | ??????????????????????????????? | | ?########?????????????????????? | | #" "?????????????????????? | | " " ??????????????????????? | | #" "" ??????????????????????? | | ?" ""????????????????????????? | | ?? ????????????????????????? | | #? ""??????????????????????? | | #?? "" ?????????????????????? | | #?? " ?????????????????????? | | ????" ? #?###????????????????? | | ?????####"## #????????????????? | | ????????? # #????????????????? | | ?????????# # #????????????????? | | ?????????# #?????##?????????? | | ?????????# ###### ######????? | | ###########"""# ## #?# #????? | | # # #%%#?# ###?## | | ## ### ## ### | | # # # ## # | | # ########### # | | # # ######?### | | #########"#"#### #@#???? | | ####????#####??## ### ###???? | | """#?????###????####?####?????? | | " "#??????????????????????????? | | "#??????????????????????????? | | "#??????????????????????????? | | """#??????????????????????????? | | ####??????????????????????????? | | ??????????????????????????????? | | ??????????????????????????????? | | ??????????????????????????????? | | ??????????????????????????????? | | ??????????????????????????????? | | ??????????????????????????????? | | ??????????????????????????????? | | ??????????????????????????????? | | ??????????????????????????????? | | ??????????????????????????????? | | ??????????????????????????????? | | ??????????????????????????????? | | ??????????????????????????????? | | ??????????????????????????????? | | ??????????????????????????????? | | ??????????????????????????????? | | | +----------------------------------------------------+ Best States ------------- Heat Dissipation 48 Energy Generation 27 Energy Capacity 485 Matter Stores 300 Matter Capacity 300 Sight Range 16 Terrain Scan Range 16 Terrain Scan Density 110 Armor Coverage 225 Propulsion Shielding 66 Evasion (%) 63 Recoil Reduction 2 Item Schematics ----------------- None Robot Schematics ------------------ None Fabricated ------------ Nothing Alien Tech Used ----------------- None Achievements -------------- None Challenges ------------ None Game ------ Seed SuspensionXenonMagmablaster Manual? 0 Play Time 01:02:36 Cumulative 45.7 hours Start 2024.10.23 @ 17:23:32 End 2024.10.23 @ 19:43:50 Sessions 1 Manual Loads 0 Difficulty Rogue Special Mode None Game No. 79 Rogue 79 Adventurer 0 Explorer 0 Win Type - Total 1 Types 1/0/0/0/0/0/0/0/0 Lore% 29 Gallery% 46 Achievement% 41 Wizard Run 0 Options --------- Layout 0 ASCII 0 Keyboard 1 Movement Numpad Keybinds 0 Fullscreen 2 Font 24/Terminus Map View 76x50 Zoom Use 0% Tactical HUD 1 Map Filters NONE Filters NONE Steam 1 RUN: fe0fc454-6835-440d-83e9-cc5b967aba8d